bitfinex-derivatives/quotes_ETHF0:USTF0_20250926
["timestamp","ask_amount","ask_price","bid_price","bid_amount"]
[1758894263203,3.2078,3939.6,3939.5,0.279]
[1758894263705,0.45654,3939.9,3939.5,0.279]
[1758894263903,3.2078,3940.2,3939.5,0.73558]
[1758894264109,0.55359648,3940.1,3939.6,0.45657]
[1758894264304,3.66431,3940.2,3939.5,0.279]
[1758894264305,3.6631,3940.2,3939.5,0.279]
[1758894264501,3.6631,3940.2,3939.8,0.45654]
[1758894264697,3.6631,3940.2,3939.1,3.2078]
[1758894264901,3.6631,3939.8,3938.9,0.467]
[1758894265105,0.4553,3939.8,3939.2,0.45661]
[1758894265404,3.2078,3940.2,3939.7,0.45656]
[1758894265598,0.91182,3940.1,3939.8,0.279]
[1758894265799,0.4553,3939.9,3939.8,0.279]
[1758894266000,0.91184,3939.9,3939.8,0.279]
[1758894266404,0.4553,3939.9,3939.8,0.279]
[1758894266599,0.4553,3940.1,3939.9,0.45653]
[1758894266800,3.2331,3941.1,3940.6,0.467]
[1758894267006,0.4806,3941.1,3940.9,0.45641]
[1758894267312,0.4806,3941.1,3941.0,3.6748]
[1758894267313,0.0253,3941.1,3941.0,3.6748]
[1758894267608,0.0253,3941.1,3941.0,3.4868]
[1758894267813,0.0253,3941.1,3941.0,3.9538]
[1758894268400,0.45632,3941.8,3941.0,3.9538]
[1758894268605,0.4553,3941.8,3941.4,0.45636]
[1758894268804,0.4553,3941.8,3941.5,0.279]
[1758894269220,3.2078,3941.9,3941.0,3.2078]
[1758894269402,0.9117,3941.1,3941.0,3.2078]
[1758894269612,0.4553,3940.8,3940.5,44.0078]
[1758894269913,1.14092,3941.4,3940.6,0.279]
[1758894269914,0.45644,3940.7,3940.6,0.279]
[1758894270114,3.2078,3941.5,3940.6,0.73545]
[1758894270309,0.4553,3941.4,3940.6,0.279]
[1758894270611,0.4553,3941.9,3940.9,3.2078]
[1758894270812,0.4553,3941.9,3941.3,3.2078]
[1758894270813,0.45634,3941.6,3941.3,3.2078]
[1758894271000,0.45634,3941.6,3941.4,0.279]
[1758894271199,0.4553,3941.5,3941.4,0.279]
[1758894271800,0.93694,3941.6,3941.4,0.279]
[1758894272005,0.4553,3941.5,3941.4,0.279]
[1758894272610,0.48164,3941.6,3941.4,0.279]
[1758894272805,0.4553,3941.0,3940.8,40.8]
[1758894273006,0.4564,3941.1,3940.9,0.467]
[1758894273312,1.1409,3941.5,3940.5,3.2078]
[1758894273313,0.45645,3940.7,3940.5,3.2078]
[1758894273514,0.4553,3940.8,3940.6,0.279]
[1758894273725,0.91174,3940.8,3940.6,0.279]
[1758894274109,4.34872,3941.4,3940.3,0.467]
[1758894274310,0.45645,3940.7,3940.4,0.279]
[1758894274509,0.45645,3940.7,3940.4,0.73547]
[1758894274708,0.4553,3940.7,3940.6,3.66426]
[1758894274909,0.45638,3941.3,3940.9,0.467]
[1758894275109,0.4553,3941.1,3941.0,0.279]
[1758894275510,0.9117,3941.1,3941.0,0.279]
[1758894275711,4.34874,3941.4,3940.5,0.45647]
[1758894275914,3.2078,3941.4,3940.6,0.279]
[1758894276112,0.0253,3941.6,3940.6,0.279]
[1758894276113,0.4553,3941.5,3940.6,3.2078]
[1758894276412,0.45638,3941.3,3941.0,0.45641]
[1758894276617,0.4553,3941.2,3941.1,0.279]
[1758894276812,3.2078,3941.4,3941.1,0.279]
[1758894277008,3.2078,3941.4,3940.5,0.467]
[1758894277213,0.45641,3941.1,3940.7,0.45644]
[1758894277416,0.4688,3940.9,3940.3,41.94123]
[1758894277712,0.0253,3941.6,3941.1,0.45639]
[1758894278018,0.4688,3941.3,3941.2,0.279]
[1758894278214,0.0253,3941.6,3941.2,0.279]
[1758894278514,0.92518,3941.3,3940.7,1.5879]
[1758894278705,0.45641,3941.0,3940.8,0.45643]
[1758894278907,0.1931,3941.5,3941.3,0.45637]
[1758894279107,0.0253,3941.6,3941.5,0.90315]
[1758894279618,0.4688,3941.5,3941.3,0.279]
[1758894279806,0.45638,3941.3,3940.9,0.4468]
[1758894280012,3.2078,3941.5,3941.4,0.45636]
[1758894280212,0.4688,3941.2,3940.5,3.6546]
[1758894280519,0.92525,3940.7,3940.5,3.2078]
[1758894280708,1.33415,3941.0,3940.6,0.279]
[1758894280907,0.92523,3940.8,3940.7,0.279]
[1758894281317,0.45648,3940.4,3940.0,3.6546]
[1758894281618,0.4688,3940.3,3940.2,0.4565]
[1758894281816,0.6619,3941.0,3940.1,0.279]
[1758894282123,0.4565,3940.2,3939.5,3.837]
[1758894282308,0.4688,3940.3,3939.6,0.279]
[1758894282514,0.45652,3940.1,3939.7,0.90335]
[1758894282813,0.45652,3940.1,3939.5,3.3902]
[1758894282814,0.4688,3940.0,3939.9,0.45654]
[1758894283013,0.92533,3940.0,3939.9,0.73554]
[1758894283220,0.92529,3940.3,3940.1,0.45651]
[1758894283425,3.2078,3940.4,3939.9,0.279]
[1758894283715,0.4688,3940.1,3939.9,0.73554]
[1758894283911,3.66423,3940.8,3940.0,0.45653]
[1758894284115,0.4688,3940.7,3939.7,0.4468]
[1758894284319,0.45653,3940.0,3939.5,3.2078]
[1758894284513,0.4688,3940.0,3939.6,0.279]
[1758894284710,2.28254,3940.2,3939.1,3.2078]
[1758894284915,0.45658,3939.6,3939.4,0.45659]
[1758894285121,3.6766,3939.9,3939.6,0.45657]
[1758894285418,0.4688,3939.9,3939.7,0.45656]
[1758894285623,0.4688,3940.2,3939.8,0.4468]
[1758894285820,3.2078,3940.8,3940.1,0.45652]
[1758894286115,0.4688,3940.3,3939.5,3.2078]
[1758894286419,0.4688,3940.0,3939.9,0.45654]
[1758894286618,0.4688,3940.0,3939.9,0.279]
[1758894286815,0.4566,3939.4,3938.7,3.2078]
[1758894287015,8.8697,3940.0,3938.8,0.279]
[1758894287016,0.45661,3939.3,3938.8,0.279]
[1758894287218,0.4688,3939.1,3939.0,0.45663]
[1758894287613,0.4688,3939.5,3939.2,0.45662]
[1758894287817,0.9254,3939.4,3939.3,0.279]
[1758894288125,0.4688,3939.4,3939.3,0.279]
[1758894288319,3.2078,3939.6,3939.5,0.4468]
[1758894288519,3.2078,3939.6,3939.5,0.90339]
[1758894288729,0.92528,3940.4,3939.8,0.45655]
[1758894288922,3.2078,3940.0,3939.9,0.45654]
[1758894289122,0.1931,3940.5,3939.8,0.279]
[1758894289123,0.45651,3940.2,3939.8,0.73554]
[1758894289322,0.4688,3940.4,3939.8,0.73554]
[1758894289525,3.4009,3940.5,3939.9,0.45654]
[1758894289824,0.45653,3940.0,3939.8,0.73555]
[1758894290126,0.4688,3940.0,3939.8,0.279]
[1758894290426,0.92534,3939.9,3939.8,0.279]
[1758894290919,0.4688,3939.9,3939.5,0.45659]
[1758894291121,0.45655,3939.8,3939.6,0.279]
[1758894291318,0.92536,3939.7,3939.6,0.279]
[1758894291718,0.92536,3939.7,3939.6,0.73557]
[1758894292024,0.92533,3940.0,3939.9,0.45653]
[1758894292222,0.45653,3940.0,3939.6,0.279]
[1758894292426,0.4688,3940.6,3940.5,0.45647]
[1758894292728,0.45646,3940.6,3940.5,0.73547]
[1758894292924,0.1931,3940.5,3939.8,3.2078]
[1758894293220,3.4009,3940.5,3939.8,3.2078]
[1758894293415,0.92534,3939.9,3939.7,0.45656]
[1758894293625,0.45655,3939.8,3939.2,3.2078]
[1758894293819,0.4688,3939.9,3939.2,3.2078]
[1758894294022,0.4688,3939.3,3939.2,3.2078]
[1758894294224,0.4688,3939.3,3939.2,0.45662]
[1758894294521,0.4688,3939.3,3939.2,0.73462]
[1758894294725,0.4688,3939.3,3938.8,3.2078]
[1758894294917,0.92541,3939.3,3938.9,0.45664]
[1758894295116,0.4688,3939.8,3939.0,0.278]
[1758894295326,0.4688,3940.3,3939.5,0.45658]
[1758894295519,0.54868944,3940.2,3939.4,0.4468]
[1758894295723,0.4688,3939.6,3939.5,0.278]
[1758894296028,0.45659,3939.5,3939.2,0.45662]
[1758894296237,0.1931,3940.5,3939.5,0.278]
[1758894296425,0.1931,3940.5,3939.4,6.50559222]
[1758894296426,0.1931,3940.5,3939.8,3.2078]
[1758894296726,0.1931,3940.5,3939.9,0.73454]
[1758894296929,0.45653,3940.0,3939.9,0.278]
[1758894297128,0.45655,3939.8,3939.2,0.4468]
[1758894297323,0.4566,3939.4,3939.3,0.278]
[1758894297529,0.4688,3939.6,3939.0,3.2078]
[1758894297826,0.4688,3939.3,3938.6,3.2078]
[1758894298231,0.45665,3939.0,3938.7,0.7248]
[1758894298417,0.4688,3939.0,3938.7,0.7248]
[1758894298727,0.4688,3939.0,3938.8,0.45667]
[1758894298919,0.4688,3939.0,3938.9,0.45665]
[1758894299119,0.4688,3939.4,3938.7,0.73467]
[1758894299320,3.2078,3939.8,3938.7,0.278]
[1758894299520,3.2078,3940.2,3939.5,3.6546]
[1758894299731,3.6643,3940.2,3940.0,0.45653]
[1758894299930,3.6766,3940.2,3940.1,0.73452]
[1758894300229,3.6766,3940.2,3940.1,0.278]
[1758894300432,0.4688,3939.8,3939.0,3.3843]
[1758894300624,3.2078,3939.8,3939.2,0.4468]
[1758894300930,0.45658,3939.6,3939.3,0.4566]
[1758894301130,0.4688,3939.6,3939.2,0.4468]
[1758894301325,0.4688,3940.3,3940.2,0.4565]
[1758894301532,0.4688,3940.8,3940.2,0.278]
[1758894301723,0.45647,3940.5,3940.3,0.45649]
[1758894302223,0.4941,3940.5,3940.4,0.45648]
[1758894302426,0.45652,3940.1,3940.0,40.8]
[1758894302732,0.45652,3940.1,3940.0,0.278]
[1758894303225,0.92532,3940.1,3940.0,0.278]
[1758894303527,0.45657,3939.6,3939.5,0.278]
[1758894303740,0.45664,3939.1,3938.6,3.6546]
[1758894303927,0.4688,3939.0,3938.7,41.078]
[1758894304226,0.92544,3939.0,3938.8,0.45667]
[1758894304532,0.4688,3939.0,3938.9,0.45665]
[1758894305027,0.92545,3939.0,3938.9,0.278]
[1758894305627,0.45668,3938.7,3938.6,3.2078]
[1758894305933,0.45668,3938.7,3937.8,3.2078]
[1758894305934,0.91587,3938.0,3937.8,3.2078]
[1758894306227,0.6483,3938.0,3937.9,0.278]
[1758894306418,0.45686,3937.2,3937.0,3.2078]
[1758894306618,0.91596,3937.2,3937.1,0.278]
[1758894306822,0.4591,3937.2,3937.1,0.278]
[1758894307226,0.4591,3936.9,3936.8,40.8]
[1758894307429,0.45688,3937.0,3936.6,3.2078]
[1758894307430,0.4658,3936.7,3936.6,3.2078]
[1758894307619,0.4658,3936.7,3936.6,3.4858]
[1758894308830,1.79124,3936.5,3935.5,0.4395]
[1758894309131,0.4658,3935.8,3935.6,0.45703]
[1758894309428,3.2078,3936.9,3936.3,0.45695]
[1758894309632,0.4658,3937.4,3936.9,0.45689]
[1758894309830,3.397,3937.5,3936.9,0.278]
[1758894310033,3.397,3937.5,3937.3,0.45683]
[1758894310333,3.397,3937.5,3937.4,0.278]
[1758894310724,3.8628,3937.5,3937.4,0.278]
[1758894310924,0.4658,3937.4,3936.9,0.278]
[1758894311131,0.4658,3937.0,3936.9,0.278]
[1758894311533,0.6489,3937.0,3936.9,0.278]
[1758894311731,0.45698,3936.1,3935.9,3.2078]
[1758894312032,0.4658,3936.0,3935.9,3.2078]
[1758894312231,3.2078,3936.9,3936.0,0.4395]
[1758894312428,3.397,3937.5,3936.9,0.45688]
[1758894312624,0.4658,3937.2,3937.0,0.73487]
[1758894312832,0.4658,3937.2,3937.1,0.278]
[1758894313033,0.92265,3937.2,3937.1,0.278]
[1758894313237,0.4658,3937.2,3937.1,0.278]
[1758894313433,0.1892,3937.5,3936.9,3.2078]
[1758894313630,0.4658,3937.8,3937.7,0.45679]
[1758894313828,0.4658,3937.8,3937.7,0.278]
[1758894314325,3.2078,3937.9,3937.6,0.278]
[1758894314529,0.4658,3937.8,3937.7,0.45679]
[1758894314729,0.4658,3937.8,3937.6,0.278]
[1758894314928,0.4658,3937.7,3937.6,0.278]
[1758894315134,0.92263,3937.4,3936.8,3.66469]
[1758894315328,0.4658,3937.4,3936.5,0.616]
[1758894315635,0.45688,3937.0,3936.6,0.278]
[1758894315831,1.14228,3936.7,3935.9,3.2078]
[1758894316023,0.4658,3936.0,3935.9,3.2078]
[1758894316234,3.2078,3937.2,3935.8,6.33679222]
[1758894316428,0.1831,3936.0,3935.4,3.2078]
[1758894316624,4.13063,3935.6,3935.5,0.278]
[1758894316824,0.92283,3935.6,3935.5,0.278]
[1758894317024,1.60842,3935.6,3934.7,0.4395]
[1758894317338,9.26659222,3935.7,3934.3,0.04733926]
[1758894317339,0.45717,3934.5,3934.3,0.04733926]
[1758894317537,0.4658,3934.4,3934.3,0.04733926]
[1758894317730,0.4658,3934.4,3934.3,0.32533926]
[1758894317926,3.2078,3934.6,3934.4,0.45718]
[1758894318131,0.6489,3935.0,3934.4,0.4395]
[1758894318331,0.64015,3935.5,3935.0,0.4571]
[1758894318531,0.4658,3935.4,3935.2,0.45708]
[1758894318730,0.4658,3935.3,3935.0,0.278]
[1758894318936,0.45704,3935.6,3935.0,0.278]
[1758894319136,0.45705,3935.5,3935.2,0.45708]
[1758894319332,0.4658,3935.6,3934.9,3.2078]
[1758894319537,0.45706,3935.4,3935.0,0.278]
[1758894319841,3.2078,3935.7,3935.5,0.45704]
[1758894320033,3.2078,3936.8,3935.6,3.6473]
[1758894320237,0.4658,3936.5,3935.6,3.6473]
[1758894320534,0.4658,3936.1,3935.1,3.6473]
[1758894320737,3.6736,3936.4,3935.6,0.45703]
[1758894321035,3.2078,3936.8,3936.0,3.2078]
[1758894321226,3.84772,3937.5,3936.8,0.4569]
[1758894321428,3.3909,3937.5,3936.9,0.279]
[1758894321737,3.2078,3937.5,3936.9,0.279]
[1758894321929,0.45684,3937.4,3937.0,0.45687]
[1758894322130,0.4658,3937.4,3937.2,0.45684]
[1758894322438,3.2078,3937.5,3936.9,0.279]
[1758894322439,3.6736,3937.5,3937.3,0.279]
[1758894322633,0.45686,3937.2,3936.9,40.8]
[1758894322839,0.4658,3937.1,3937.0,0.279]
[1758894323032,0.4658,3937.4,3937.0,0.279]
[1758894323237,3.2078,3937.5,3937.3,0.45683]
[1758894323443,3.66462,3937.5,3937.4,0.278]
[1758894323637,0.4658,3937.9,3937.4,0.278]
[1758894323838,3.2078,3938.2,3937.3,3.66464]
[1758894323839,0.92255,3938.1,3937.3,3.66464]
[1758894324040,0.4658,3938.0,3937.6,0.4568]
[1758894324244,0.4658,3937.6,3937.3,3.2078]
[1758894324842,0.4658,3937.5,3937.4,0.278]
[1758894325139,3.66454,3938.2,3937.7,0.45678]
[1758894325437,0.4658,3937.9,3937.3,3.6473]
[1758894325639,3.2078,3938.2,3936.9,3.2078]
[1758894325640,0.92262,3937.5,3936.9,3.2078]
[1758894325942,0.4658,3937.8,3937.4,0.278]
[1758894326249,0.45681,3937.6,3937.4,0.278]
[1758894326439,0.92261,3937.6,3937.5,0.278]
[1758894326842,0.4658,3937.6,3937.5,0.278]
[1758894327144,0.4658,3938.1,3937.5,0.278]
[1758894327340,0.4658,3938.1,3937.8,0.45678]
[1758894327548,0.45675,3938.1,3937.9,0.278]
[1758894327841,3.3909,3938.0,3937.0,40.8]
[1758894328147,1.14181,3938.4,3937.5,0.4395]
[1758894328148,0.45679,3937.7,3937.5,0.4395]
[1758894328441,0.45684,3937.3,3937.1,0.4395]
[1758894328645,0.45684,3937.3,3937.2,0.278]
[1758894329146,0.45683,3937.5,3937.2,0.278]
[1758894329340,3.2078,3937.9,3937.3,0.278]
[1758894329543,0.45686,3937.1,3937.0,3.2078]
[1758894329858,0.92267,3937.1,3937.0,0.278]
[1758894330148,0.4658,3937.1,3937.0,0.278]
[1758894330646,0.92271,3936.7,3936.6,3.2078]
[1758894330847,0.4658,3936.2,3936.1,3.2078]
[1758894331050,0.4658,3936.2,3936.1,3.4858]
[1758894331350,0.45706,3935.5,3935.2,3.6473]
[1758894331536,0.4658,3935.9,3935.3,0.278]
[1758894331739,0.4658,3935.4,3935.3,0.278]
[1758894331939,0.92287,3935.3,3935.2,3.2078]
[1758894332143,0.92287,3935.3,3935.2,3.4858]
[1758894332343,3.2078,3935.9,3935.3,0.4395]
[1758894332545,0.0254,3935.4,3935.3,0.89657]
[1758894332946,0.0254,3935.4,3935.3,0.4395]
[1758894333246,0.0254,3935.4,3935.3,5.278]
[1758894333553,0.0254,3935.4,3935.3,5.7175]
[1758894334252,0.45696,3936.3,3935.5,0.4395]
[1758894334451,3.2078,3937.3,3936.3,0.4395]
[1758894334746,0.1831,3937.5,3937.0,0.45687]
[1758894334949,0.4658,3937.3,3937.1,0.278]
[1758894335149,0.4658,3937.3,3936.1,3.2078]
[1758894335346,0.45687,3937.0,3936.1,3.2078]
[1758894335646,3.66468,3937.0,3936.1,3.2078]
[1758894335839,3.66468,3937.0,3936.2,0.278]
[1758894335840,3.3909,3937.0,3936.2,0.278]
[1758894336043,0.4569,3936.8,3936.2,0.278]
[1758894336253,0.1831,3937.0,3936.2,3.4858]
[1758894336450,0.4658,3936.8,3935.9,0.4395]
[1758894336652,3.7567374,3936.9,3935.8,3.2078]
[1758894336653,0.45696,3936.3,3935.8,3.2078]
[1758894336853,0.4658,3935.9,3934.9,3.2078]
[1758894337149,0.1831,3935.5,3935.0,0.278]
[1758894337350,0.1831,3935.5,3934.9,44.0078]
[1758894337351,0.4658,3935.1,3934.9,44.0078]
[1758894337551,0.4658,3935.1,3934.4,3.2078]
[1758894337747,0.1831,3935.5,3934.5,0.278]
[1758894337748,0.45711,3935.0,3934.5,0.278]
[1758894337949,0.4276,3934.9,3934.5,0.278]
[1758894338255,0.4276,3935.0,3934.6,41.078]
[1758894338549,0.4276,3934.7,3934.3,0.04733926]
[1758894338754,0.91007,3935.3,3934.7,0.45713]
[1758894338952,0.0254,3935.3,3934.8,0.278]
[1758894339149,0.4276,3935.0,3934.8,0.278]
[1758894339350,0.4276,3935.0,3934.6,3.66495]
[1758894339351,0.453,3935.3,3934.6,4.35067]
[1758894339555,0.0254,3935.3,3935.2,0.467]
[1758894340053,0.0254,3935.3,3935.2,0.278]
[1758894340256,0.0254,3935.3,3935.2,5.0]
[1758894340550,0.0254,3935.3,3935.2,0.745]
[1758894340749,0.0254,3935.3,3935.2,0.467]
[1758894340952,0.4276,3935.8,3935.2,41.078]
[1758894341456,0.4276,3935.8,3935.6,0.45703]
[1758894341754,0.1831,3936.5,3935.6,0.45703]
[1758894341755,3.2078,3936.5,3936.1,0.45697]
[1758894341953,0.4276,3936.9,3936.2,0.73496]
[1758894342149,0.54845094,3936.8,3936.2,0.278]
[1758894342343,0.54845094,3936.7,3936.2,0.278]
[1758894342554,0.4276,3936.3,3936.2,0.278]
[1758894342851,0.457,3936.0,3935.3,3.2078]
[1758894343057,0.8846,3936.0,3935.4,0.278]
[1758894343260,0.457,3935.9,3935.6,0.45703]
[1758894343446,0.457,3935.9,3935.3,3.6748]
[1758894343447,3.6354,3936.2,3936.1,0.45698]
[1758894343754,0.0254,3936.4,3936.1,0.745]
[1758894343957,0.0254,3936.4,3936.3,0.45695]
[1758894344152,0.0254,3936.4,3936.3,0.92395]
[1758894344660,0.0254,3936.4,3936.3,0.45695]
[1758894344961,0.0254,3936.4,3936.3,0.92395]
[1758894345149,3.6354,3937.0,3936.9,0.45689]
[1758894345150,3.2078,3937.0,3936.9,0.45689]
[1758894345454,3.2078,3937.5,3937.1,0.45686]
[1758894345653,0.4276,3937.3,3937.2,0.278]
[1758894345955,0.45684,3937.3,3937.2,0.278]
[1758894346152,0.4276,3937.3,3937.2,0.278]
[1758894346955,3.2078,3937.5,3937.2,0.278]
[1758894347154,3.6354,3937.9,3937.7,0.45679]
[1758894347455,3.6354,3937.9,3937.8,0.278]
[1758894347652,3.6354,3937.9,3937.2,40.8]
[1758894347653,0.45684,3937.3,3937.2,40.8]
[1758894347847,0.4276,3937.3,3937.2,41.078]
[1758894348043,0.4276,3937.3,3937.2,40.8]
[1758894348247,0.4276,3937.3,3937.2,0.278]
[1758894348450,3.66463,3937.4,3936.3,3.2078]
[1758894348451,0.45689,3937.0,3936.3,3.2078]
[1758894348655,0.45688,3937.0,3936.5,0.45693]
[1758894348852,0.45688,3937.0,3936.4,41.078]
[1758894348853,1.14237,3936.4,3935.4,3.2078]
[1758894349055,0.1809,3936.5,3935.0,0.1698]
[1758894349056,0.457,3936.0,3935.7,0.45702]
[1758894349258,3.2078,3936.2,3935.9,0.457]
[1758894349559,0.1809,3936.5,3936.0,0.73499]
[1758894349759,0.4276,3936.2,3936.0,0.278]
[1758894350155,3.6354,3936.2,3936.1,0.278]
[1758894350455,4.63983897,3936.2,3936.1,0.278]
[1758894350760,4.63983897,3936.2,3935.7,0.278]
[1758894350761,0.4276,3935.9,3935.7,0.278]
[1758894350952,0.4276,3935.9,3935.0,3.6748]
[1758894350953,0.88466,3935.4,3935.0,0.4571]
[1758894351153,3.2078,3935.8,3934.6,3.2078]
[1758894351154,3.2078,3935.8,3935.1,0.278]
[1758894351456,0.45704,3935.6,3935.1,1.20209]
[1758894351759,0.4276,3935.5,3935.2,0.45708]
[1758894351952,0.4276,3935.7,3935.1,0.278]
[1758894352347,0.4276,3935.7,3935.5,0.45705]
[1758894352551,0.88457,3936.2,3935.7,0.45702]
[1758894352757,0.4276,3936.1,3935.6,0.73503]
[1758894353057,0.4276,3935.4,3935.2,0.278]
[1758894353352,0.4276,3935.3,3935.2,0.278]
[1758894353557,1.14269,3935.3,3934.3,0.50451926]
[1758894353757,0.45712,3934.9,3934.5,0.45716]
[1758894353955,0.4276,3935.1,3934.4,0.278]
[1758894354157,0.4276,3935.1,3935.0,3.2078]
[1758894354350,3.6354,3936.2,3935.0,3.3776]
[1758894354552,3.6354,3936.2,3934.5,0.1698]
[1758894354553,1.14248,3936.0,3934.6,3.2078]
[1758894354856,0.4276,3935.7,3935.6,0.45704]
[1758894355247,0.1809,3936.0,3935.5,0.73504]
[1758894355454,3.2078,3935.9,3935.6,0.45703]
[1758894355760,0.4276,3935.8,3935.7,0.45702]
[1758894356253,0.4276,3935.6,3935.5,0.278]
[1758894356453,0.4276,3935.6,3935.4,0.278]
[1758894356661,0.88465,3935.5,3935.4,0.278]
[1758894356852,1.06555,3935.5,3935.4,0.278]
[1758894357248,0.6085,3935.5,3935.4,0.278]
[1758894357455,3.8163,3935.5,3935.4,0.278]
[1758894357757,0.4276,3935.5,3935.4,0.278]
[1758894357962,0.4276,3936.0,3935.9,0.457]
[1758894358463,3.2078,3936.1,3935.9,0.735]
[1758894358653,0.4276,3936.3,3935.9,0.278]
[1758894358958,0.45695,3936.4,3936.0,0.45699]
[1758894359153,0.45699,3936.0,3935.9,0.278]
[1758894359361,0.45705,3935.5,3935.2,0.45708]
[1758894359557,0.4276,3935.9,3935.3,0.73507]
[1758894359859,0.45705,3935.5,3935.3,0.73507]
[1758894360248,0.4276,3935.9,3935.0,0.467]
[1758894360249,0.4276,3935.1,3935.0,0.4571]
[1758894360559,3.2078,3936.3,3936.2,0.92397]
[1758894360756,3.2078,3936.3,3936.2,1.20197]
[1758894360952,3.2078,3936.3,3936.2,5.92397]
[1758894361152,3.2078,3936.3,3936.2,40.8]
[1758894361358,0.45701,3935.9,3935.7,0.92402]
[1758894361553,3.66477,3936.3,3935.8,0.278]
[1758894361756,3.2078,3936.3,3936.0,0.45699]
[1758894362070,3.2078,3936.3,3936.2,0.467]
[1758894362362,3.2078,3936.3,3936.1,0.45698]
[1758894362752,3.2078,3936.8,3936.1,0.467]
[1758894362960,3.2078,3936.8,3936.7,0.467]
[1758894363255,3.2078,3936.8,3936.7,0.745]
[1758894363963,0.0254,3936.9,3936.8,0.4569]
[1758894364157,0.4276,3937.4,3937.2,0.45685]
[1758894364462,3.2078,3937.7,3937.5,0.92382]
[1758894365261,3.2078,3937.7,3937.6,40.8]
[1758894365452,3.2078,3938.7,3937.6,41.2467]
[1758894365653,3.2078,3938.7,3938.4,0.45671]
[1758894365964,0.45669,3938.6,3938.5,0.278]
[1758894366163,0.45673,3938.3,3937.9,0.45677]
[1758894366457,0.4342,3938.1,3938.0,0.278]
[1758894366958,0.45672,3938.4,3937.6,40.8]
[1758894366959,0.4342,3938.0,3937.6,40.8]
[1758894367160,0.4342,3938.0,3936.7,3.2078]
[1758894367161,0.4342,3937.7,3936.7,3.2078]
[1758894367373,0.4342,3937.7,3936.8,0.278]
[1758894367656,0.4342,3937.7,3936.7,3.2078]
[1758894367657,0.4468,3936.8,3936.7,3.2078]
[1758894367964,0.4468,3936.8,3935.0,1.80302013]
[1758894367965,3.2078,3936.8,3935.0,1.80302013]
[1758894368261,3.2078,3936.8,3933.4,3.66508]
[1758894368262,0.4468,3934.2,3933.4,3.66508]
[1758894368558,0.4468,3933.7,3933.2,41.078]
[1758894368756,0.4468,3933.7,3933.3,3.6651]
[1758894368954,0.4468,3933.7,3933.5,0.45727]
[1758894369164,0.15004839,3933.6,3933.5,0.91657]
[1758894369349,0.15004839,3933.6,3933.5,1.19457]
[1758894370559,0.15004839,3933.6,3933.5,6.19457]
[1758894371362,0.4468,3934.9,3933.7,0.4593]
[1758894371659,0.45714,3934.8,3934.2,3.2078]
[1758894371964,0.45718,3934.4,3933.7,3.2078]
[1758894372158,0.90405,3933.8,3933.4,0.4593]
[1758894372359,0.4468,3934.4,3933.8,0.45724]
[1758894372560,0.4468,3934.4,3934.0,0.4593]
[1758894373061,3.6546,3934.5,3934.1,0.45721]
[1758894373260,0.4468,3934.8,3934.1,0.45721]
[1758894373461,0.45715,3934.7,3934.1,0.45721]
[1758894373669,0.4468,3934.8,3934.2,0.45719]
[1758894373962,3.2078,3934.8,3934.3,0.278]
[1758894374263,3.2078,3934.8,3934.1,0.4572]
[1758894374264,3.6546,3935.6,3934.7,3.66493]
[1758894374571,0.45714,3934.8,3934.2,3.66499]
[1758894374868,0.4468,3934.6,3934.3,41.078]
[1758894375561,0.4571,3935.1,3934.3,41.078]
[1758894375864,3.6546,3935.2,3934.7,0.45713]
[1758894376054,3.6546,3935.2,3934.8,0.7373]
[1758894376254,3.6546,3935.2,3934.8,0.278]
[1758894376569,0.4468,3935.6,3935.0,0.4571]
[1758894376866,0.4468,3935.6,3934.8,3.4858]
[1758894376867,0.45709,3935.2,3935.1,0.278]
[1758894377066,0.4468,3935.2,3934.3,41.2593]
[1758894377366,0.4468,3935.1,3934.4,0.278]
[1758894377563,0.45715,3934.6,3934.4,0.278]
[1758894377769,0.45714,3934.8,3934.4,0.278]
[1758894377967,3.2078,3935.2,3934.6,3.2078]
[1758894378156,0.4468,3935.1,3934.3,40.8]
[1758894378361,0.90393,3934.8,3934.7,0.278]
[1758894378569,3.6546,3935.2,3934.7,0.278]
[1758894378774,0.4468,3935.8,3935.1,3.2078]
[1758894378963,3.2078,3936.4,3935.5,3.2078]
[1758894379268,0.4468,3935.7,3935.6,0.278]
[1758894380070,3.2078,3936.0,3935.2,0.4593]
[1758894380269,3.3778,3936.0,3935.4,0.4593]
[1758894380458,0.4468,3935.8,3935.4,0.4593]
[1758894380663,3.2078,3936.0,3935.5,40.8]
[1758894380867,0.4468,3936.0,3935.8,0.45701]
[1758894381065,0.4468,3936.3,3935.9,0.278]
[1758894381266,0.4468,3936.3,3936.0,0.45699]
[1758894381576,3.2078,3936.4,3936.0,0.4593]
[1758894381866,0.4468,3936.3,3935.9,0.278]
[1758894382062,0.90378,3936.1,3936.0,0.278]
[1758894382264,3.2078,3936.4,3935.5,40.8]
[1758894382469,0.4468,3935.9,3935.6,0.278]